[Event "105th British-ch 2018"]
[Site "Hull"]
[Date "2018.08.03"]
[Round "7"]
[White "De Coverly, Roger D"]
[Black "Thurlow, Kevin J"]
[Result "1/2-1/2"]
[ECO "A08"]
[WhiteElo "1920"]
[BlackElo "2030"]
[Annotator "NA"]
[PlyCount "79"]
[EventDate "2018.07.28"]
[EventType "swiss"]
[EventCountry "GBR"]
[SourceTitle "playchess.com"]
[Source "ChessBase"]
[SourceQuality "1"]
[TimeControl "40/5400+30:1800+30"]

1. e4 {[%emt 0:00:00]} c5 {[%emt 0:00:00]} 2. Nf3 {[%emt 0:00:00]} e6 {[%emt 0:00:00]} 3. d3 {[%emt 0:00:00]} d5 {[%emt 0:00:18]} 4. Nbd2 {[%emt 0:00:00]} Nc6 {[%emt 0:00:05]} 5. g3 {[%emt 0:00:20]} Nf6 {[%emt 0:01:28]} 6. Bg2 {[%emt 0:00:39]} dxe4 {[%emt 0:01:12]} 7. dxe4 {[%emt 0:00:31]} e5 {[%emt 0:01:33]} 8. O-O {[%emt 0:02:42]} Be7 {[%emt 0:02:21]} 9. c3 {[%emt 0:02:18]} O-O {[%emt 0:01:56]} 10. Nc4 {[%emt 0:03:44]} Qc7 {[%emt 0:01:07]} 11. Qc2 {[%emt 0:03:46]} b6 {[%emt 0:04:48]} 12. Re1 {[%emt 0:01:58]} Be6 {[%emt 0:04:12]} 13. Ne3 {[%emt 0:03:10]} h6 {[%emt 0:00:44]} 14. Nh4 {[%emt 0:01:59]} Rfd8 {[%emt 0:01:32]} 15. b3 {[%emt 0:07:44]} Rd7 {[%emt 0:03:30]} 16. Bb2 {[%emt 0:00:21]} Rad8 {[%emt 0:00:22]} 17. Rad1 {[%emt 0:00:19]} g6 {[%emt 0:08:00]} 18. Rxd7 {[%emt 0:02:16]} Rxd7 {[%emt 0:00:14]} 19. Rd1 {[%emt 0:04:26]} Qd8 {[%emt 0:03:51]} 20. Rxd7 {[%emt 0:00:50]} Qxd7 {[%emt 0:00:17]} 21. Qd1 {[%emt 0:00:32]} Qxd1+ {[%emt 0:00:26]} 22. Nxd1 {[%emt 0:00:05]} c4 {[%emt 0:00:29]} 23. b4 {[%emt 0:02:12]} b5 {[%emt 0:04:56]} 24. Ne3 {[%emt 0:02:11]} Bd8 {[%emt 0:00:35]} 25. Nd5 {[%emt 0:02:34]} Kg7 {[%emt 0:00:30]} 26. Bf3 {[%emt 0:01:58]} g5 {[%emt 0:08:59]} 27. Nxf6 {[%emt 0:04:04]} Kxf6 {[%emt 0:02:02]} 28. Nf5 {[%emt 0:01:56]} Kg6 {[%emt 0:08:29]} 29. Kf1 {[%emt 0:08:13]} h5 {[%emt 0:08:36]} 30. Bc1 {[%emt 0:01:44]} Ne7 {[%emt 0:01:08]} 31. Nd6 {[%emt 0:03:51]} a6 {[%emt 0:02:50]} 32. Be3 {[%emt 0:01:33]} Bc7 {[%emt 0:02:59]} 33. Bc5 {[%emt 0:12:09]} Nc8 {[%emt 0:03:39]} 34. Nb7 {[%emt 0:02:21]} Bd7 {[%emt 0:01:11]} 35. Be3 {[%emt 0:01:49]} Nb6 {[%emt 0:01:21]} 36. Nc5 {[%emt 0:03:41]} Bc8 {[%emt 0:00:12]} 37. Bd1 {[%emt 0:03:12]} Nd7 {[%emt 0:00:32]} 38. Bc2 {[%emt 0:01:32]} Nxc5 {[%emt 0:00:16]} 39. Bxc5 {[%emt 0:00:25]} g4 {[%emt 0:02:02]} 40. Ke2 {[%emt 0:00:36]} 1/2-1/2

[Event "105th British-ch 2018"]
[Site "Hull"]
[Date "2018.08.04"]
[Round "8"]
[White "Hawkins, Jonathan"]
[Black "Webb, Laurence"]
[Result "1-0"]
[ECO "C03"]
[WhiteElo "2590"]
[BlackElo "2306"]
[Annotator "ChessBase"]
[PlyCount "95"]
[EventDate "2018.07.28"]
[EventType "swiss"]
[EventCountry "GBR"]
[SourceTitle "playchess.com"]
[Source "ChessBase"]
[SourceQuality "1"]
[TimeControl "40/5400+30:1800+30"]

1. e4 {[%emt 0:03:31]} e6 {[%emt 0:00:11]} 2. d4 {[%emt 0:00:06]} d5 {[%emt 0:00:03]} 3. Nd2 {[%emt 0:00:06]} Be7 {[%emt 0:00:22]} 4. e5 {[%emt 0:00:07]} c5 {[%emt 0:00:27]} 5. c3 {[%emt 0:00:06]} Nc6 {[%emt 0:00:24]} 6. Bd3 {[%emt 0:02:17]} Nh6 {[%emt 0:01:26]} 7. Ne2 {[%emt 0:00:53]} Nf5 {[%emt 0:01:03]} 8. Nf3 {[%emt 0:01:23]} Nh4 {[%emt 0:06:55]} 9. Nxh4 {[%emt 0:04:40]} Bxh4 {[%emt 0:00:03]} 10. Be3 {[%emt 0:01:04]} cxd4 {[%emt 0:01:46]} 11. Bxd4 {[%emt 0:03:24]} Bd7 {[%emt 0:04:00]} 12. O-O {[%emt 0:00:47]} Be7 {[%emt 0:02:17]} 13. Kh1 {[%emt 0:05:34]} Nxd4 {[%emt 0:09:13]} 14. Nxd4 {[%emt 0:05:39]} Qb6 {[%emt 0:07:20]} 15. Qe2 {[%emt 0:00:21]} a6 {[%emt 0:07:10]} 16. a4 {[%emt 0:02:10]} a5 {[%emt 0:10:21]} 17. f4 {[%emt 0:07:10]} g6 {[%emt 0:00:55]} 18. Bb5 {[%emt 0:10:54]} Bxb5 {[%emt 0:05:35]} 19. axb5 {[%emt 0:00:05]} Bc5 {[%emt 0:02:08]} 20. Nb3 {[%emt 0:03:43]} a4 {[%emt 0:07:59]} 21. Nxc5 {[%emt 0:05:44]} Qxc5 {[%emt 0:00:54]} 22. Ra3 {[%emt 0:00:07]} O-O {[%emt 0:02:21]} 23. Rfa1 {[%emt 0:00:36]} d4 {[%emt 0:03:29]} 24. c4 {[%emt 0:02:32]} d3 {[%emt 0:03:46]} 25. Qxd3 {[%emt 0:00:50]} Qf2 {[%emt 0:00:18]} 26. Qe4 {[%emt 0:05:57]} b6 {[%emt 0:02:08]} 27. b3 {[%emt 0:02:39]} Rad8 {[%emt 0:04:07]} 28. Rxa4 {[%emt 0:06:31]} Rd4 {[%emt 0:01:40]} 29. Qf3 {[%emt 0:05:59]} Qxf3 {[%emt 0:10:23]} 30. gxf3 {[%emt 0:00:06]} Rd3 {[%emt 0:00:03]} 31. Ra6 {[%emt 0:01:58]} Rxb3 {[%emt 0:01:34]} 32. Rxb6 {[%emt 0:01:02]} Rd8 {[%emt 0:01:28]} 33. Rd6 {[%emt 0:03:39]} Rc8 {[%emt 0:00:20]} 34. Rc6 {[%emt 0:06:45]} Rd8 {[%emt 0:00:12]} 35. Kg2 {[%emt 0:00:06]} Rd2+ {[%emt 0:00:44]} 36. Kg3 {[%emt 0:00:10]} Rbb2 {[%emt 0:01:06]} 37. Rg1 {[%emt 0:00:20]} Rxh2 {[%emt 0:01:18]} 38. b6 {[%emt 0:00:47]} Rhc2 {[%emt 0:01:52]} 39. c5 {[%emt 0:00:53]} Rc4 {[%emt 0:01:11]} 40. Rc7 {[%emt 0:00:38]} Rcb4 {[%emt 0:00:33]} 41. Rd1 {[%emt 0:30:37]} h5 {[%emt 0:01:05]} 42. Rd8+ {[%emt 0:00:00]} Kg7 {[%emt 0:00:11]} 43. Rdd7 {[%emt 0:00:00]} h4+ {[%emt 0:00:07]} 44. Kg4 {[%emt 0:00:00]} g5 {[%emt 0:04:29]} 45. Rxf7+ {[%emt 0:00:00]} Kg8 {[%emt 0:00:10]} 46. Kxg5 {[%emt 0:00:00]} Rg2+ {[%emt 0:00:40]} 47. Kh6 {[%emt 0:00:00]} h3 {[%emt 0:01:09]} 48. Rf6 {[%emt 0:00:00]} 1-0

[Event "105th British-ch 2018"]
[Site "Hull"]
[Date "2018.08.04"]
[Round "8"]
[White "Adair, James R"]
[Black "Arkell, Keith C"]
[Result "*"]
[WhiteElo "2492"]
[BlackElo "2406"]
[Annotator "ChessBase"]
[PlyCount "136"]
[EventDate "2018.07.28"]
[EventType "swiss"]
[EventCountry "GBR"]
[SourceTitle "playchess.com"]
[Source "ChessBase"]
[SourceQuality "1"]
[TimeControl "40/5400+30:1800+30"]

1. e4 {[%emt 0:00:01]} e6 {[%emt 0:00:00]} 2. d4 {[%emt 0:00:05]} d5 {[%emt 0:00:00]} 3. Nc3 {[%emt 0:00:05]} dxe4 {[%emt 0:00:00]} 4. Nxe4 {[%emt 0:00:05]} Bd7 {[%emt 0:00:00]} 5. Nf3 {[%emt 0:00:16]} Bc6 {[%emt 0:00:00]} 6. Bd3 {[%emt 0:00:06]} Nd7 {[%emt 0:00:00]} 7. O-O {[%emt 0:00:25]} Ngf6 {[%emt 0:00:04]} 8. Ng3 {[%emt 0:00:24]} (8. Ned2 {[%cal Gf1e1,Gf3e5]}) 8... Be7 {[%emt 0:00:17]} 9. Re1 {[%emt 0:00:34]} (9. Ne5 Nxe5 10. dxe5 Qd5 {[%cal Gd5e5]}) 9... Bxf3 {[%emt 0:00:09]} (9... O-O {[%cal Gc2c3]} 10. Ne5 Nxe5 11. dxe5 Qd5 {[%csl Ge5][%cal Gd5g2]} 12. f3 Bc5+ 13. Kh1 Ng4) 10. Qxf3 {[%emt 0:00:06]} c6 {[%emt 0:00:04]} 11. c3 {[%emt 0:00:53]} O-O {[%emt 0:00:14]} 12. Bc2 {[%emt 0:01:20]} Re8 {[%emt 0:00:21]} 13. Bd2 {[%emt 0:02:50]} Qb6 {[%emt 0:05:18]} (13... Nf8 14. Rad1 Qb6 15. Bc1 {[%csl Gc1]}) 14. b3 {[%emt 0:06:26]} Rac8 {[%emt 0:04:03]} 15. Rad1 {[%emt 0:03:11]} c5 {[%emt 0:10:40]} 16. dxc5 {[%emt 0:03:07]} Bxc5 {[%emt 0:00:07]} 17. Ne4 {[%emt 0:06:42]} (17. c4 {[%csl Gc2,Gc5][%cal Gc5b4]}) 17... Be7 {[%emt 0:03:58]} (17... Nxe4 18. Qxe4 (18. Rxe4 {[%csl Gb6,Gd1,Gd7,Gh7][%cal Ge4h4]}) 18... Bxf2+ {[%cal Gg1h1]} 19. Kh1 Nf6 {[%csl Ge4,Gh7]}) 18. c4 {[%emt 0:09:10]} (18. Nxf6+ Nxf6 {[%cal Ge1e4]}) (18. Ng5 {[%cal Gd7f8]} h6 19. Nxe6 fxe6 20. Bxh6 gxh6 21. Qg3+ Kh8 22. Qg6 Bf8 (22... Nf8 23. Qxh6+ N8h7 24. Rxe6 Qxe6 25. Bxh7)) 18... Qa6 {[%emt 0:08:33]} 19. Bc3 {[%emt 0:09:19]} Red8 {[%emt 0:03:00]} (19... Qxa2 20. Re2 (20. Nxf6+ Nxf6 21. Qd3) (20. Qd3 Qa6 21. Nxf6+ Nxf6 22. Bxf6 Bxf6 23. Qxh7+ Kf8 24. Rd7 {[%csl Gf7][%cal Gg7g6]}) (20. Rxd7 Nxd7 21. Qd3) 20... Qa6 21. Rxd7 Nxd7 22. Qg3 e5 {[%cal Ga6h6]}) 20. Qg3 {[%emt 0:07:50]} g6 {[%emt 0:03:52]} 21. a4 {[%emt 0:13:32]} Nxe4 {[%emt 0:07:15]} 22. Bxe4 {[%emt 0:01:25]} Qb6 {[%emt 0:04:58]} 23. a5 {[%emt 0:05:30]} Qc7 {[%emt 0:01:50]} 24. Qxc7 {[%emt 0:03:53]} Rxc7 {[%emt 0:00:04]} 25. g3 {[%emt 0:01:57]} Rdc8 {[%emt 0:01:01]} 26. Re3 {[%emt 0:01:47]} b6 {[%emt 0:04:59]} 27. Bc2 {[%emt 0:03:11]} Nf6 {[%emt 0:05:21]} 28. Be5 {[%emt 0:03:58]} Rc5 {[%emt 0:01:09]} 29. axb6 {[%emt 0:00:12]} axb6 {[%emt 0:00:12]} 30. Bd4 {[%emt 0:00:50]} R5c6 {[%emt 0:00:07]} 31. Re5 {[%emt 0:00:51]} Ng4 {[%emt 0:04:03]} 32. Rb5 {[%emt 0:01:18]} Bc5 {[%emt 0:00:17]} 33. h3 {[%emt 0:02:00]} Bxd4 {[%emt 0:00:12]} 34. Rxd4 {[%emt 0:00:19]} Nf6 {[%emt 0:00:12]} 35. Bd1 {[%emt 0:03:37]} Rb8 {[%emt 0:00:46]} 36. Bf3 {[%emt 0:02:04]} Rc5 {[%emt 0:00:12]} 37. Rb4 {[%emt 0:00:24]} Ne8 {[%emt 0:03:58]} 38. Rd7 {[%emt 0:01:47]} Rc7 {[%emt 0:11:35]} 39. Rxc7 {[%emt 0:00:16]} Nxc7 {[%emt 0:00:04]} 40. c5 {[%emt 0:05:43]} b5 {[%emt 0:00:22]} 41. Rd4 {[%emt 0:04:36]} Na6 {[%emt 0:03:34]} 42. c6 {[%emt 0:02:38]} (42. b4 e5 {[%csl Gb4,Gd4]}) 42... Rc8 {[%emt 0:00:50]} 43. Rd6 {[%emt 0:04:48]} (43. Be2) 43... Nb4 {[%emt 0:11:02]} 44. Be2 {[%emt 0:05:26]} Nxc6 {[%emt 0:08:17]} 45. Bxb5 {[%emt 0:00:04]} Na5 {[%emt 0:01:56]} 46. Ba4 {[%emt 0:00:17]} Rb8 {[%emt 0:01:04]} 47. Rd3 {[%emt 0:01:55]} Kg7 {[%emt 0:10:37]} 48. Kf1 {[%emt 0:00:38]} Rb4 {[%emt 0:00:15]} 49. Ke2 {[%emt 0:01:20]} Nb7 {[%emt 0:00:05]} 50. Rc3 {[%emt 0:00:49]} Nd6 {[%emt 0:00:06]} 51. Rd3 {[%emt 0:01:58]} Ne4 {[%emt 0:00:43]} 52. Ke3 {[%emt 0:02:16]} Nc5 {[%emt 0:03:53]} 53. Rc3 {[%emt 0:00:17]} Nxa4 {[%emt 0:00:08]} 54. bxa4 {[%emt 0:00:03]} Rxa4 {[%emt 0:00:05]} 55. h4 {[%emt 0:01:18]} h6 {[%emt 0:00:15]} 56. Rc7 {[%emt 0:00:41]} g5 {[%emt 0:00:15]} 57. hxg5 {[%emt 0:00:06]} hxg5 {[%emt 0:00:03]} 58. Rb7 {[%emt 0:02:21]} Ra3+ {[%emt 0:00:13]} 59. Ke2 {[%emt 0:00:12]} Kg6 {[%emt 0:00:24]} 60. Re7 {[%emt 0:00:07]} g4 {[%emt 0:00:55]} 61. Kd2 {[%emt 0:00:25]} Kf6 {[%emt 0:00:10]} 62. Rb7 {[%emt 0:00:18]} e5 {[%emt 0:00:07]} 63. Ke2 {[%emt 0:00:25]} Ke6 {[%emt 0:00:08]} 64. Rb6+ {[%emt 0:00:33]} Kf5 {[%emt 0:00:06]} 65. Rb7 {[%emt 0:00:19]} f6 {[%emt 0:00:06]} 66. Rb6 {[%emt 0:00:16]} Rc3 {[%emt 0:00:08]} 67. Ra6 {[%emt 0:00:14]} Rc5 {[%emt 0:00:18]} 68. Ke3 {[%emt 0:00:15]} Rb5 {[%emt 0:00:06]} *

[Event "105th British-ch 2018"]
[Site "Hull"]
[Date "2018.08.04"]
[Round "8"]
[White "Tan, Justin Hy"]
[Black "Ghasi, Ameet K"]
[Result "1/2-1/2"]
[ECO "B12"]
[WhiteElo "2481"]
[BlackElo "2494"]
[Annotator "ChessBase"]
[PlyCount "98"]
[EventDate "2018.07.28"]
[EventType "swiss"]
[EventCountry "GBR"]
[SourceTitle "playchess.com"]
[Source "ChessBase"]
[SourceQuality "1"]
[TimeControl "40/5400+30:1800+30"]

1. e4 {[%emt 0:00:00]} c6 {[%emt 0:00:25]} 2. d4 {[%emt 0:00:00]} d5 {[%emt 0:00:06]} 3. e5 {[%emt 0:00:00]} Bf5 {[%emt 0:00:17]} 4. Nf3 {[%emt 0:00:00]} e6 {[%emt 0:00:13]} 5. Be2 {[%emt 0:00:00]} c5 {[%emt 0:00:06]} 6. Be3 {[%emt 0:00:17]} cxd4 {[%emt 0:04:03]} 7. Nxd4 {[%emt 0:00:12]} Ne7 {[%emt 0:00:06]} 8. c4 {[%emt 0:08:52]} Nbc6 {[%emt 0:07:24]} 9. O-O {[%emt 0:13:41]} dxc4 {[%emt 0:09:53]} 10. Bxc4 {[%emt 0:04:00]} Nxd4 {[%emt 0:02:37]} 11. Bxd4 {[%emt 0:00:12]} a6 {[%emt 0:00:57]} 12. Bc3 {[%emt 0:05:38]} Qxd1 {[%emt 0:18:07]} 13. Rxd1 {[%emt 0:01:33]} Nc6 {[%emt 0:03:31]} 14. a3 {[%emt 0:14:31]} Rc8 {[%emt 0:07:40]} 15. Nd2 {[%emt 0:04:58]} Be7 {[%emt 0:04:55]} 16. Be2 {[%emt 0:08:52]} O-O {[%emt 0:02:12]} 17. Bf3 {[%emt 0:03:52]} Bc2 {[%emt 0:06:00]} 18. Re1 {[%emt 0:02:14]} Rfd8 {[%emt 0:01:45]} 19. Rac1 {[%emt 0:03:25]} Bd3 {[%emt 0:05:33]} 20. Ne4 {[%emt 0:01:38]} Bb5 {[%emt 0:04:52]} 21. g3 {[%emt 0:10:15]} Ba4 {[%emt 0:00:42]} 22. h4 {[%emt 0:02:33]} Bb3 {[%emt 0:01:01]} 23. Kg2 {[%emt 0:02:12]} h6 {[%emt 0:01:25]} 24. h5 {[%emt 0:00:40]} Rd7 {[%emt 0:05:15]} 25. Nd2 {[%emt 0:05:00]} Bd5 {[%emt 0:00:26]} 26. Bxd5 {[%emt 0:00:02]} Rxd5 {[%emt 0:00:18]} 27. Nc4 {[%emt 0:00:15]} Rc5 {[%emt 0:04:33]} 28. Nb6 {[%emt 0:02:07]} Rd8 {[%emt 0:00:09]} 29. b4 {[%emt 0:03:45]} Rb5 {[%emt 0:00:06]} 30. Nc4 {[%emt 0:00:04]} Rbd5 {[%emt 0:01:04]} 31. Ne3 {[%emt 0:00:29]} Rd3 {[%emt 0:01:45]} 32. Nc4 {[%emt 0:01:36]} b5 {[%emt 0:04:33]} 33. Nb2 {[%emt 0:00:11]} R3d5 {[%emt 0:00:17]} 34. Nd1 {[%emt 0:01:21]} Rd3 {[%emt 0:02:43]} 35. Nb2 {[%emt 0:00:11]} R3d5 {[%emt 0:00:01]} 36. Nd1 {[%emt 0:00:00]} a5 {[%emt 0:00:23]} 37. Ne3 {[%emt 0:01:03]} Rd3 {[%emt 0:00:35]} 38. Bb2 {[%emt 0:00:01]} axb4 {[%emt 0:01:38]} 39. Rxc6 {[%emt 0:00:01]} bxa3 40. Bc1 {[%emt 0:03:40]} Ra8 {[%emt 0:01:36]} 41. Nc2 {[%emt 0:10:14]} b4 {[%emt 0:05:35]} 42. Re3 {[%emt 0:04:50]} Rd1 {[%emt 0:13:37]} 43. Na1 {[%emt 0:00:27]} Rad8 {[%emt 0:01:01]} 44. Rc7 {[%emt 0:01:00]} R8d7 {[%emt 0:02:46]} 45. Rxd7 {[%emt 0:00:57]} Rxd7 {[%emt 0:00:04]} 46. Nb3 {[%emt 0:00:29]} Rd1 {[%emt 0:01:13]} 47. Re2 {[%emt 0:01:03]} Rd3 {[%emt 0:00:44]} 48. Re3 {[%emt 0:00:15]} Rd1 {[%emt 0:01:07]} 49. Re2 {[%emt 0:02:08]} Rd3 {[%emt 0:02:55]} 1/2-1/2

[Event "105th British-ch 2018"]
[Site "Hull"]
[Date "2018.08.04"]
[Round "8"]
[White "Houska, Jovanka"]
[Black "Gormally, Daniel"]
[Result "0-1"]
[ECO "A13"]
[WhiteElo "2406"]
[BlackElo "2478"]
[Annotator "ChessBase"]
[PlyCount "118"]
[EventDate "2018.07.28"]
[EventType "swiss"]
[EventCountry "GBR"]
[SourceTitle "playchess.com"]
[Source "ChessBase"]
[SourceQuality "1"]
[TimeControl "40/5400+30:1800+30"]

1. Nf3 {[%emt 0:01:34]} d5 {[%emt 0:00:04]} 2. d4 {[%emt 0:00:43]} Nf6 {[%emt 0:00:14]} 3. c4 {[%emt 0:00:05]} e6 {[%emt 0:00:06]} 4. e3 {[%emt 0:00:26]} Be7 {[%emt 0:01:04]} 5. b3 {[%emt 0:00:35]} O-O {[%emt 0:01:23]} 6. Bb2 {[%emt 0:01:44]} c5 {[%emt 0:03:27]} 7. cxd5 {[%emt 0:01:15]} Nxd5 {[%emt 0:03:16]} 8. dxc5 {[%emt 0:13:31]} Bxc5 {[%emt 0:00:05]} 9. Bd3 {[%emt 0:00:21]} Nb4 {[%emt 0:01:47]} 10. Be2 {[%emt 0:01:28]} Qxd1+ {[%emt 0:00:06]} 11. Kxd1 {[%emt 0:00:04]} Rd8+ {[%emt 0:01:17]} 12. Nbd2 {[%emt 0:00:16]} b6 {[%emt 0:02:15]} 13. a3 {[%emt 0:06:52]} Nd5 {[%emt 0:07:04]} 14. Bc4 {[%emt 0:05:25]} Bb7 {[%emt 0:11:21]} 15. Ke2 {[%emt 0:01:01]} Nd7 {[%emt 0:00:06]} 16. Rhd1 {[%emt 0:01:36]} a6 {[%emt 0:02:00]} 17. Rac1 {[%emt 0:03:45]} Rac8 {[%emt 0:03:11]} 18. b4 {[%emt 0:11:08]} Be7 {[%emt 0:00:07]} 19. Nb3 {[%emt 0:02:06]} b5 {[%emt 0:07:47]} 20. Bd3 {[%emt 0:11:23]} N7b6 {[%emt 0:01:11]} 21. Na5 {[%emt 0:02:35]} Ba8 {[%emt 0:00:13]} 22. Rxc8 {[%emt 0:02:13]} Rxc8 {[%emt 0:00:06]} 23. Rc1 {[%emt 0:00:02]} Rxc1 {[%emt 0:00:08]} 24. Bxc1 {[%emt 0:00:04]} Bf6 {[%emt 0:07:07]} 25. Ne1 {[%emt 0:02:58]} Nc3+ {[%emt 0:01:06]} 26. Kd2 {[%emt 0:00:31]} Na2 {[%emt 0:01:23]} 27. Kc2 {[%emt 0:03:14]} Nxc1 {[%emt 0:02:10]} 28. Kxc1 {[%emt 0:00:03]} Na4 {[%emt 0:00:55]} 29. Be2 {[%emt 0:03:43]} Be4 {[%emt 0:08:34]} 30. Bd3 {[%emt 0:03:32]} Ba8 {[%emt 0:01:27]} 31. Be2 {[%emt 0:02:01]} Bd5 {[%emt 0:02:07]} 32. Bf3 {[%emt 0:00:58]} Bb2+ {[%emt 0:00:09]} 33. Kb1 {[%emt 0:01:48]} Bxa3 {[%emt 0:03:17]} 34. Nc2 {[%emt 0:00:07]} Bxf3 {[%emt 0:06:17]} 35. gxf3 {[%emt 0:00:16]} Bb2 {[%emt 0:00:06]} 36. Ne1 {[%emt 0:05:01]} Be5 {[%emt 0:02:09]} 37. f4 {[%emt 0:00:05]} Bc7 {[%emt 0:01:06]} 38. Nb3 {[%emt 0:02:33]} Nc3+ {[%emt 0:01:37]} 39. Kc2 {[%emt 0:01:11]} Nd5 {[%emt 0:00:07]} 40. Nd3 {[%emt 0:00:05]} Bd6 {[%emt 0:00:04]} 41. Ndc5 {[%emt 0:34:40]} Nxb4+ {[%emt 0:30:06]} 42. Kc3 {[%emt 0:00:06]} Bxc5 {[%emt 0:02:47]} 43. Nxc5 {[%emt 0:00:20]} a5 {[%emt 0:00:04]} 44. Nb7 {[%emt 0:02:25]} Nd5+ {[%emt 0:04:00]} 45. Kd4 {[%emt 0:02:37]} a4 {[%emt 0:00:28]} 46. Nc5 {[%emt 0:00:15]} Kf8 {[%emt 0:02:49]} 47. f5 {[%emt 0:01:53]} Ke7 {[%emt 0:00:03]} 48. fxe6 {[%emt 0:01:08]} fxe6 {[%emt 0:00:05]} 49. e4 {[%emt 0:00:09]} Nb4 {[%emt 0:02:40]} 50. Kc3 {[%emt 0:01:30]} Nc6 {[%emt 0:00:06]} 51. f4 {[%emt 0:00:21]} b4+ {[%emt 0:03:26]} 52. Kc4 {[%emt 0:00:33]} a3 {[%emt 0:00:04]} 53. Kb3 {[%emt 0:00:44]} e5 {[%emt 0:01:22]} 54. f5 {[%emt 0:00:00]} Nd4+ {[%emt 0:00:00]} 55. Ka2 {[%emt 0:00:00]} Ne2 {[%emt 0:00:00]} 56. h4 {[%emt 0:00:00]} Kd6 {[%emt 0:00:00]} 57. Nb7+ {[%emt 0:00:00]} Kc6 {[%emt 0:00:00]} 58. Nd8+ {[%emt 0:00:00]} Kb5 {[%emt 0:00:00]} 59. Nf7 {[%emt 0:00:00]} Ka4 {[%emt 0:00:00]} 0-1

[Event "105th British-ch 2018"]
[Site "Hull"]
[Date "2018.08.04"]
[Round "8"]
[White "Mcphillips, Joseph"]
[Black "Toma, Katarzyna"]
[Result "1-0"]
[ECO "B33"]
[WhiteElo "2402"]
[BlackElo "2274"]
[Annotator "NA"]
[PlyCount "97"]
[EventDate "2018.07.28"]
[EventType "swiss"]
[EventCountry "GBR"]
[SourceTitle "playchess.com"]
[Source "ChessBase"]
[SourceQuality "1"]
[TimeControl "40/5400+30:1800+30"]

1. e4 {[%emt 0:00:56]} c5 {[%emt 0:00:00]} 2. Nf3 {[%emt 0:00:03]} Nc6 {[%emt 0:00:00]} 3. d4 {[%emt 0:00:04]} cxd4 {[%emt 0:00:00]} 4. Nxd4 {[%emt 0:00:03]} Nf6 {[%emt 0:00:00]} 5. Nc3 {[%emt 0:00:05]} e5 {[%emt 0:00:05]} 6. Ndb5 {[%emt 0:00:03]} d6 {[%emt 0:00:07]} 7. Bg5 {[%emt 0:00:04]} a6 {[%emt 0:00:05]} 8. Na3 {[%emt 0:00:05]} b5 {[%emt 0:00:04]} 9. Bxf6 {[%emt 0:03:07]} gxf6 {[%emt 0:00:06]} 10. Nd5 {[%emt 0:00:09]} f5 {[%emt 0:00:07]} 11. g3 {[%emt 0:00:58]} fxe4 {[%emt 0:00:20]} 12. Bg2 {[%emt 0:00:34]} Bg7 {[%emt 0:00:17]} 13. Bxe4 {[%emt 0:00:03]} O-O {[%emt 0:01:52]} 14. Ne3 {[%emt 0:01:09]} Qd7 {[%emt 0:15:25]} 15. Qh5 {[%emt 0:00:20]} f5 {[%emt 0:02:14]} 16. Bxf5 {[%emt 0:09:20]} Rxf5 {[%emt 0:00:07]} 17. Nxf5 {[%emt 0:00:04]} Qxf5 {[%emt 0:00:04]} 18. Qe8+ {[%emt 0:00:05]} Qf8 {[%emt 0:03:01]} 19. Qxc6 {[%emt 0:00:32]} Bg4 {[%emt 0:01:02]} 20. O-O {[%emt 0:13:23]} Bf3 {[%emt 0:01:41]} 21. Qd7 {[%emt 0:00:17]} Qf6 {[%emt 0:22:42]} 22. c3 {[%emt 0:08:03]} Rd8 {[%emt 0:08:10]} 23. Qh3 {[%emt 0:01:29]} d5 {[%emt 0:04:26]} 24. Rac1 {[%emt 0:20:00]} Rf8 {[%emt 0:14:27]} 25. Nc2 {[%emt 0:08:59]} d4 {[%emt 0:03:49]} 26. cxd4 {[%emt 0:03:19]} exd4 {[%emt 0:00:04]} 27. Nb4 {[%emt 0:00:17]} Be2 {[%emt 0:04:55]} 28. Nd5 {[%emt 0:05:05]} Qf7 {[%emt 0:02:36]} 29. Nf4 {[%emt 0:00:25]} d3 {[%emt 0:02:41]} 30. Rcd1 {[%emt 0:06:17]} Qxa2 {[%emt 0:01:48]} 31. Nxd3 {[%emt 0:01:21]} Qb3 {[%emt 0:01:07]} 32. Nc5 {[%emt 0:06:36]} Bxf1 {[%emt 0:02:32]} 33. Rxf1 {[%emt 0:01:49]} Qxb2 {[%emt 0:00:07]} 34. Qe6+ {[%emt 0:03:57]} Rf7 {[%emt 0:02:34]} 35. Qxa6 {[%emt 0:01:18]} b4 {[%emt 0:02:18]} 36. Ne6 {[%emt 0:00:47]} h6 {[%emt 0:03:17]} 37. Qa8+ {[%emt 0:00:52]} Kh7 {[%emt 0:00:44]} 38. Qd5 {[%emt 0:02:14]} Ra7 {[%emt 0:01:57]} 39. Kg2 {[%emt 0:02:46]} Qc2 {[%emt 0:01:20]} 40. Rd1 {[%emt 0:02:20]} Ra2 {[%emt 0:01:04]} 41. Qf3 {[%emt 0:06:56]} Ra7 {[%emt 0:17:36]} 42. Rd3 {[%emt 0:00:22]} Kg8 {[%emt 0:00:10]} 43. Qd5 {[%emt 0:07:20]} Rf7 {[%emt 0:02:10]} 44. Rf3 {[%emt 0:02:11]} Qg6 {[%emt 0:03:06]} 45. Nd8 {[%emt 0:01:09]} Bf6 {[%emt 0:01:00]} 46. Nxf7 {[%emt 0:01:04]} Qxf7 {[%emt 0:00:03]} 47. Qf5 {[%emt 0:00:21]} Kg7 {[%emt 0:00:31]} 48. Qg4+ {[%emt 0:00:09]} Kh7 {[%emt 0:00:49]} 49. Qxb4 {[%emt 0:00:09]} 1-0

[Event "105th British-ch 2018"]
[Site "Hull"]
[Date "2018.08.04"]
[Round "8"]
[White "Fitzsimons, David"]
[Black "Abdulla, Murad"]
[Result "1-0"]
[ECO "C54"]
[WhiteElo "2328"]
[BlackElo "2281"]
[Annotator "NA"]
[PlyCount "73"]
[EventDate "2018.07.28"]
[EventType "swiss"]
[EventCountry "GBR"]
[SourceTitle "playchess.com"]
[Source "ChessBase"]
[SourceQuality "1"]
[TimeControl "40/5400+30:1800+30"]

1. e4 {[%emt 0:00:00]} e5 {[%emt 0:00:15]} 2. Nf3 {[%emt 0:00:00]} Nc6 {[%emt 0:00:13]} 3. Bc4 {[%emt 0:00:05]} Bc5 {[%emt 0:00:20]} 4. O-O {[%emt 0:00:07]} Nf6 {[%emt 0:00:16]} 5. d3 {[%emt 0:00:06]} d6 {[%emt 0:00:32]} 6. c3 {[%emt 0:00:07]} a6 {[%emt 0:00:37]} 7. Bb3 {[%emt 0:00:18]} Ba7 {[%emt 0:00:24]} 8. Nbd2 {[%emt 0:00:39]} h6 {[%emt 0:00:30]} 9. Re1 {[%emt 0:00:25]} g5 {[%emt 0:00:12]} 10. Nf1 {[%emt 0:00:33]} g4 {[%emt 0:00:38]} 11. N3d2 {[%emt 0:00:06]} h5 {[%emt 0:00:21]} 12. Nc4 {[%emt 0:00:42]} h4 {[%emt 0:07:56]} 13. Be3 {[%emt 0:00:50]} Qe7 {[%emt 0:00:44]} 14. d4 {[%emt 0:05:13]} b5 {[%emt 0:19:48]} 15. dxe5 {[%emt 0:08:15]} dxe5 {[%emt 0:15:52]} 16. Bxa7 {[%emt 0:03:41]} bxc4 {[%emt 0:00:50]} 17. Ba4 {[%emt 0:02:36]} Bb7 {[%emt 0:09:29]} 18. Be3 {[%emt 0:01:25]} Qe6 {[%emt 0:00:51]} 19. Bg5 {[%emt 0:03:55]} Nd7 {[%emt 0:04:58]} 20. Qd5 {[%emt 0:13:15]} Qg6 {[%emt 0:00:25]} 21. Rad1 {[%emt 0:00:25]} Qe6 {[%emt 0:03:32]} 22. Re2 {[%emt 0:03:05]} Rh5 {[%emt 0:08:16]} 23. Red2 {[%emt 0:01:06]} Qxd5 {[%emt 0:03:16]} 24. Rxd5 {[%emt 0:00:41]} Rxg5 {[%emt 0:00:22]} 25. Rxd7 {[%emt 0:00:07]} Rc8 {[%emt 0:02:02]} 26. Ne3 {[%emt 0:00:20]} Kf8 {[%emt 0:04:16]} 27. Nxc4 {[%emt 0:04:41]} g3 {[%emt 0:04:55]} 28. hxg3 {[%emt 0:06:10]} hxg3 {[%emt 0:00:06]} 29. fxg3 {[%emt 0:00:26]} Rxg3 {[%emt 0:01:45]} 30. Rf1 {[%emt 0:07:32]} Rg7 {[%emt 0:00:19]} 31. Nb6 {[%emt 0:03:40]} Ke8 {[%emt 0:05:44]} 32. Nxc8 {[%emt 0:01:35]} Kxd7 {[%emt 0:00:50]} 33. Na7 {[%emt 0:00:06]} Rg6 {[%emt 0:02:18]} 34. Rxf7+ {[%emt 0:00:32]} Kd8 {[%emt 0:00:05]} 35. Nxc6+ {[%emt 0:00:44]} Bxc6 {[%emt 0:00:12]} 36. Bxc6 {[%emt 0:00:17]} Rxc6 {[%emt 0:00:05]} 37. Rf5 {[%emt 0:00:04]} 1-0